[Event "EWIRCC 2019"]
[Site "Monte-Carlo"]
[Date "2019.11.30"]
[Round "2.1"]
[White "Dornbusch, Tatiana"]
[Black "Muzychuk, Anna"]
[Result "1/2-1/2"]
[ECO "A81"]
[WhiteElo "2269"]
[BlackElo "2543"]
[Annotator "ChessBase"]
[PlyCount "69"]
[EventDate "2019.11.28"]
[EventType "swiss"]
[EventCountry "MNC"]
[SourceTitle "playchess.com"]
[Source "ChessBase"]
[SourceQuality "1"]
[TimeControl "5400+30"]

1. d4 {[%emt 1:15:12]} f5 {[%emt 1:15:11]} 2. g3 {[%emt 0:00:23]} Nf6 {[%emt 0:00:21]} 3. Bg2 {[%emt 0:00:25]} g6 {[%emt 0:00:21]} 4. Nh3 {[%emt 0:00:41]} d6 {[%emt 0:00:28]} 5. O-O {[%emt 0:02:07]} Bg7 {[%emt 0:00:23]} 6. c3 {[%emt 0:00:22]} c6 {[%emt 0:00:32]} 7. Qb3 {[%emt 0:00:45]} e5 {[%emt 0:00:28]} 8. dxe5 {[%emt 0:02:16]} dxe5 {[%emt 0:00:22]} 9. Ng5 {[%emt 0:01:09]} Qe7 {[%emt 0:00:22]} 10. Be3 {[%emt 0:00:49]} Na6 {[%emt 0:00:34]} 11. Nd2 {[%emt 0:00:54]} h6 {[%emt 0:02:44]} 12. Ngf3 {[%emt 0:00:36]} Ng4 {[%emt 0:00:23]} 13. Nh4 {[%emt 0:01:10]} Qf7 {[%emt 0:02:19]} 14. Nc4 {[%emt 0:04:26]} O-O {[%emt 0:00:22]} 15. Nd6 {[%emt 0:00:40]} Qxb3 {[%emt 0:01:01]} 16. axb3 {[%emt 0:00:21]} Nxe3 {[%emt 0:02:44]} 17. fxe3 {[%emt 0:00:27]} Rf6 {[%emt 0:00:23]} 18. Ne8 {[%emt 0:02:39]} Rf8 {[%emt 0:03:49]} 19. Nd6 {[%emt 0:00:33]} Rf6 {[%emt 0:02:29]} 20. Ne8 {[%emt 0:00:21]} Re6 {[%emt 0:01:22]} 21. Nxg7 {[%emt 0:00:23]} Kxg7 {[%emt 0:00:21]} 22. e4 {[%emt 0:00:21]} f4 {[%emt 0:00:43]} 23. gxf4 {[%emt 0:00:44]} exf4 {[%emt 0:00:20]} 24. Rxf4 {[%emt 0:00:22]} Nc7 {[%emt 0:00:22]} 25. Raf1 {[%emt 0:00:31]} Re7 {[%emt 0:00:20]} 26. Rf6 {[%emt 0:01:09]} g5 {[%emt 0:00:24]} 27. Ng6 {[%emt 0:00:32]} Re8 {[%emt 0:00:52]} 28. Rf7+ {[%emt 0:00:35]} Kxg6 {[%emt 0:00:22]} 29. R1f6+ {[%emt 0:00:41]} Kh5 {[%emt 0:00:21]} 30. Rh7 {[%emt 0:00:37]} g4 {[%emt 0:00:42]} 31. Rhxh6+ {[%emt 0:01:04]} Kg5 {[%emt 0:00:21]} 32. Rhg6+ {[%emt 0:01:18]} Kh5 {[%emt 0:00:24]} 33. Rh6+ {[%emt 0:00:41]} Kg5 {[%emt 0:00:21]} 34. Rhg6+ {[%emt 0:01:21]} Kh5 {[%emt 0:00:21]} 35. Rh6+ {[%emt 0:00:20]} 1/2-1/2

[Event "EWIRCC 2019"]
[Site "Monte-Carlo"]
[Date "2019.11.30"]
[Round "2.2"]
[White "Kosteniuk, Alexandra"]
[Black "Savina, Anastasia"]
[Result "1-0"]
[ECO "C84"]
[WhiteElo "2483"]
[BlackElo "2354"]
[Annotator "ChessBase"]
[PlyCount "106"]
[EventDate "2019.11.28"]
[EventType "swiss"]
[EventCountry "MNC"]
[SourceTitle "playchess.com"]
[Source "ChessBase"]
[SourceQuality "1"]
[TimeControl "5400+30"]

1. e4 {[%emt 1:15:13]} e5 {[%emt 1:15:27]} 2. Nf3 {[%emt 0:00:22]} Nc6 {[%emt 0:00:22]} 3. Bb5 {[%emt 0:00:22]} a6 {[%emt 0:00:21]} 4. Ba4 {[%emt 0:00:21]} Nf6 {[%emt 0:00:22]} 5. d4 {[%emt 0:00:21]} exd4 {[%emt 0:03:54]} 6. O-O {[%emt 0:00:34]} Be7 {[%emt 0:02:37]} 7. e5 {[%emt 0:00:22]} Ne4 {[%emt 0:01:02]} 8. Nxd4 {[%emt 0:00:23]} Nxd4 {[%emt 0:02:01]} 9. Qxd4 {[%emt 0:00:22]} Nc5 {[%emt 0:00:22]} 10. Bb3 {[%emt 0:00:21]} Nxb3 {[%emt 0:00:33]} 11. cxb3 {[%emt 0:00:37]} O-O {[%emt 0:00:48]} 12. Bf4 {[%emt 0:00:21]} d5 {[%emt 0:01:59]} 13. exd6 {[%emt 0:00:22]} Bxd6 {[%emt 0:00:22]} 14. Bxd6 {[%emt 0:00:22]} Qxd6 {[%emt 0:00:22]} 15. Qxd6 {[%emt 0:00:22]} cxd6 {[%emt 0:00:21]} 16. Nc3 {[%emt 0:00:24]} Be6 {[%emt 0:01:24]} 17. Rad1 {[%emt 0:00:21]} Rfd8 {[%emt 0:00:35]} 18. Rd4 {[%emt 0:00:23]} Kf8 {[%emt 0:01:25]} 19. Rfd1 {[%emt 0:00:30]} Ke7 {[%emt 0:00:25]} 20. g4 {[%emt 0:00:26]} Rac8 {[%emt 0:00:45]} 21. Kg2 {[%emt 0:00:43]} Rc5 {[%emt 0:01:19]} 22. R1d2 {[%emt 0:00:22]} h6 {[%emt 0:01:30]} 23. Ne4 {[%emt 0:02:43]} Rc6 {[%emt 0:00:29]} 24. Ng3 {[%emt 0:00:44]} Rc1 {[%emt 0:00:59]} 25. Re2 {[%emt 0:03:19]} Kf8 {[%emt 0:00:29]} 26. Red2 {[%emt 0:02:23]} Ra1 {[%emt 0:00:34]} 27. a3 {[%emt 0:00:45]} Bxb3 {[%emt 0:00:36]} 28. Rxd6 {[%emt 0:00:21]} Rxd6 {[%emt 0:00:28]} 29. Rxd6 {[%emt 0:00:21]} Rd1 {[%emt 0:00:55]} 30. Rxd1 {[%emt 0:03:13]} Bxd1 {[%emt 0:00:22]} 31. h3 {[%emt 0:00:21]} g6 {[%emt 0:00:49]} 32. f4 {[%emt 0:00:26]} Ke7 {[%emt 0:00:27]} 33. Ne4 {[%emt 0:00:34]} Ba4 {[%emt 0:00:51]} 34. Kf2 {[%emt 0:00:57]} Bc6 {[%emt 0:00:24]} 35. Ke3 {[%emt 0:00:56]} Bxe4 {[%emt 0:01:09]} 36. Kxe4 {[%emt 0:00:21]} Ke6 {[%emt 0:00:21]} 37. Kd4 {[%emt 0:03:02]} b6 {[%emt 0:00:49]} 38. Ke4 {[%emt 0:01:15]} f5+ {[%emt 0:00:33]} 39. gxf5+ {[%emt 0:00:31]} gxf5+ {[%emt 0:00:21]} 40. Kd4 {[%emt 0:00:21]} Kd6 {[%emt 0:00:29]} 41. a4 {[%emt 0:00:38]} Ke6 {[%emt 0:00:47]} 42. h4 {[%emt 0:00:52]} h5 {[%emt 0:00:22]} 43. a5 {[%emt 0:01:02]} bxa5 {[%emt 0:00:25]} 44. Kc5 {[%emt 0:00:21]} a4 {[%emt 0:00:23]} 45. Kc6 {[%emt 0:00:21]} Kf7 {[%emt 0:00:57]} 46. Kd5 {[%emt 0:00:31]} Kf6 {[%emt 0:00:28]} 47. Kd6 {[%emt 0:00:22]} a5 {[%emt 0:00:36]} 48. Kd5 {[%emt 0:00:23]} Kf7 {[%emt 0:00:29]} 49. Ke5 {[%emt 0:00:21]} Ke7 {[%emt 0:00:28]} 50. Kxf5 {[%emt 0:00:22]} Kd6 {[%emt 0:00:20]} 51. Kg6 {[%emt 0:00:32]} Kd5 {[%emt 0:00:38]} 52. f5 {[%emt 0:00:21]} Kc4 {[%emt 0:00:35]} 53. f6 {[%emt 0:00:22]} Kd5 {[%emt 0:00:41]} 1-0

[Event "EWIRCC 2019"]
[Site "Monte-Carlo"]
[Date "2019.11.30"]
[Round "2.3"]
[White "Gaprindashvili, Nona"]
[Black "Muzychuk, Mariya"]
[Result "0-1"]
[ECO "E20"]
[WhiteElo "2275"]
[BlackElo "2552"]
[Annotator "ChessBase"]
[PlyCount "114"]
[EventDate "2019.11.28"]
[EventType "swiss"]
[EventCountry "MNC"]
[SourceTitle "playchess.com"]
[Source "ChessBase"]
[SourceQuality "1"]
[TimeControl "5400+30"]

1. d4 {[%emt 1:15:12]} Nf6 {[%emt 1:15:11]} 2. c4 {[%emt 0:00:21]} e6 {[%emt 0:00:23]} 3. Nc3 {[%emt 0:00:24]} Bb4 {[%emt 0:00:24]} 4. Bd2 {[%emt 0:00:21]} b6 {[%emt 0:00:30]} 5. Qc2 {[%emt 0:00:23]} Bb7 {[%emt 0:00:22]} 6. f3 {[%emt 0:00:23]} c5 {[%emt 0:00:40]} 7. a3 {[%emt 0:00:48]} Bxc3 {[%emt 0:00:33]} 8. Bxc3 {[%emt 0:00:22]} cxd4 {[%emt 0:00:37]} 9. Bxd4 {[%emt 0:00:22]} O-O {[%emt 0:00:37]} 10. e4 {[%emt 0:01:22]} d5 {[%emt 0:00:35]} 11. O-O-O {[%emt 0:01:46]} dxe4 {[%emt 0:04:52]} 12. Bc3 {[%emt 0:00:55]} Qc7 {[%emt 0:00:37]} 13. Bxf6 {[%emt 0:00:28]} Qf4+ {[%emt 0:00:23]} 14. Kb1 {[%emt 0:00:32]} Qxf6 {[%emt 0:00:57]} 15. fxe4 {[%emt 0:00:22]} Nc6 {[%emt 0:00:28]} 16. Nf3 {[%emt 0:03:28]} Rfd8 {[%emt 0:00:24]} 17. Bd3 {[%emt 0:00:23]} Ne5 {[%emt 0:00:59]} 18. Qe2 {[%emt 0:05:52]} Nxd3 {[%emt 0:03:55]} 19. Rxd3 {[%emt 0:00:24]} Qf4 {[%emt 0:00:33]} 20. Re3 {[%emt 0:00:47]} Rd7 {[%emt 0:00:44]} 21. Rc1 {[%emt 0:00:25]} Rad8 {[%emt 0:00:44]} 22. Rc2 {[%emt 0:01:53]} h6 {[%emt 0:00:30]} 23. Ka2 {[%emt 0:00:34]} e5 {[%emt 0:02:10]} 24. Rcc3 {[%emt 0:00:58]} Qf6 {[%emt 0:00:29]} 25. Qc2 {[%emt 0:02:25]} Qe6 {[%emt 0:00:26]} 26. b3 {[%emt 0:00:30]} Kh7 {[%emt 0:01:03]} 27. Kb2 {[%emt 0:00:34]} Rd1 {[%emt 0:00:45]} 28. c5 {[%emt 0:00:50]} bxc5 {[%emt 0:01:43]} 29. Rxc5 {[%emt 0:00:22]} f6 {[%emt 0:00:50]} 30. Rc7 {[%emt 0:00:44]} Qb6 {[%emt 0:01:17]} 31. Qc5 {[%emt 0:00:55]} Qxc5 {[%emt 0:00:44]} 32. Rxc5 {[%emt 0:00:21]} R8d7 {[%emt 0:00:32]} 33. b4 {[%emt 0:00:34]} Rf1 {[%emt 0:00:27]} 34. Re2 {[%emt 0:00:24]} Rdd1 {[%emt 0:00:45]} 35. Kb3 {[%emt 0:00:35]} Rd3+ {[%emt 0:00:37]} 36. Rc3 {[%emt 0:00:30]} Rb1+ {[%emt 0:00:35]} 37. Kc2 {[%emt 0:00:35]} Rxc3+ {[%emt 0:00:25]} 38. Kxc3 {[%emt 0:00:22]} Bc6 {[%emt 0:00:23]} 39. Kc2 {[%emt 0:00:42]} Ra1 {[%emt 0:00:26]} 40. Kb2 {[%emt 0:00:21]} Rd1 {[%emt 0:00:24]} 41. Nd2 {[%emt 0:00:50]} Bb5 {[%emt 0:00:22]} 42. Rf2 {[%emt 0:00:21]} Re1 {[%emt 0:00:21]} 43. h3 {[%emt 0:00:32]} h5 {[%emt 0:00:32]} 44. Kc3 {[%emt 0:00:22]} Re3+ {[%emt 0:01:46]} 45. Kb2 Kg6 {[%emt 0:00:00]} 46. Ka2 {[%emt 0:00:44]} h4 {[%emt 0:00:00]} 47. Kb2 {[%emt 0:00:21]} Kf7 {[%emt 0:00:09]} 48. Ka2 {[%emt 0:00:21]} Ke6 49. Kb2 g5 {[%emt 0:00:47]} 50. Ka2 {[%emt 0:00:41]} Bd3 {[%emt 0:00:25]} 51. Rf3 {[%emt 0:01:49]} Rxf3 {[%emt 0:00:47]} 52. gxf3 {[%emt 0:00:00]} f5 {[%emt 0:00:21]} 53. a4 {[%emt 0:00:11]} fxe4 {[%emt 0:00:46]} 54. fxe4 {[%emt 0:00:21]} Be2 {[%emt 0:00:31]} 55. b5 {[%emt 0:00:25]} g4 {[%emt 0:00:25]} 56. hxg4 {[%emt 0:00:23]} h3 {[%emt 0:00:23]} 57. a5 {[%emt 0:00:46]} h2 {[%emt 0:01:56]} 0-1

[Event "EWIRCC 2019"]
[Site "Monte-Carlo"]
[Date "2019.11.30"]
[Round "2.4"]
[White "Zaksaite, Salomeja"]
[Black "Stefanova, Antoaneta"]
[Result "0-1"]
[ECO "D94"]
[WhiteElo "2202"]
[BlackElo "2481"]
[Annotator "ChessBase"]
[PlyCount "50"]
[EventDate "2019.11.28"]
[EventType "swiss"]
[EventCountry "MNC"]
[SourceTitle "playchess.com"]
[Source "ChessBase"]
[SourceQuality "1"]
[TimeControl "5400+30"]

1. e4 {[%emt 1:15:10]} c6 {[%emt 1:15:19]} 2. d4 {[%emt 0:00:25]} d5 {[%emt 0:00:22]} 3. exd5 {[%emt 0:00:25]} cxd5 {[%emt 0:00:22]} 4. c4 {[%emt 0:00:21]} Nf6 {[%emt 0:00:32]} 5. Nc3 {[%emt 0:00:26]} g6 {[%emt 0:01:13]} 6. cxd5 {[%emt 0:00:54]} Nxd5 {[%emt 0:00:56]} 7. Bc4 {[%emt 0:01:59]} Nb6 {[%emt 0:00:42]} 8. Bb3 {[%emt 0:00:39]} Bg7 {[%emt 0:00:49]} 9. Nf3 {[%emt 0:01:59]} O-O {[%emt 0:00:52]} 10. O-O {[%emt 0:00:47]} Nc6 {[%emt 0:02:30]} 11. Re1 {[%emt 0:04:52]} Bg4 {[%emt 0:01:31]} 12. Bg5 {[%emt 0:01:23]} h6 {[%emt 0:05:08]} 13. Be3 {[%emt 0:04:01]} Na5 {[%emt 0:01:57]} 14. h3 {[%emt 0:01:03]} Nxb3 {[%emt 0:01:15]} 15. axb3 {[%emt 0:00:24]} Be6 {[%emt 0:00:21]} 16. Ne4 {[%emt 0:00:36]} Bd5 {[%emt 0:00:36]} 17. Nc5 {[%emt 0:00:25]} Nc8 {[%emt 0:00:52]} 18. Ne5 {[%emt 0:00:33]} Nd6 {[%emt 0:00:28]} 19. Qc1 {[%emt 0:01:07]} Kh7 {[%emt 0:00:23]} 20. Qd1 {[%emt 0:01:18]} Nf5 {[%emt 0:00:44]} 21. Qd3 {[%emt 0:00:31]} b6 {[%emt 0:01:00]} 22. Ne4 {[%emt 0:00:27]} Bb7 {[%emt 0:00:34]} 23. Nc4 {[%emt 0:00:56]} Qd5 {[%emt 0:00:53]} 24. Ncd2 {[%emt 0:00:39]} Nxe3 {[%emt 0:00:30]} 25. fxe3 {[%emt 0:00:50]} f5 {[%emt 0:00:22]} 0-1

[Event "EWIRCC 2019"]
[Site "Monte-Carlo"]
[Date "2019.11.30"]
[Round "2.5"]
[White "Unuk, Laura"]
[Black "Gunina, Valentina"]
[Result "1/2-1/2"]
[ECO "D11"]
[WhiteElo "2298"]
[BlackElo "2509"]
[Annotator "ChessBase"]
[PlyCount "110"]
[EventDate "2019.11.28"]
[EventType "swiss"]
[EventCountry "MNC"]
[SourceTitle "playchess.com"]
[Source "ChessBase"]
[SourceQuality "1"]
[TimeControl "5400+30"]

1. Nf3 {[%emt 1:15:13]} Nf6 {[%emt 1:15:11]} 2. g3 {[%emt 0:00:26]} d5 {[%emt 0:00:22]} 3. Bg2 {[%emt 0:00:22]} c6 {[%emt 0:00:21]} 4. O-O {[%emt 0:00:27]} Bg4 {[%emt 0:00:22]} 5. d4 {[%emt 0:01:00]} e6 {[%emt 0:00:31]} 6. c4 {[%emt 0:00:42]} Nbd7 {[%emt 0:00:42]} 7. Qb3 {[%emt 0:00:32]} Qb6 {[%emt 0:00:24]} 8. Nc3 {[%emt 0:01:36]} Be7 {[%emt 0:00:44]} 9. c5 {[%emt 0:02:06]} Qxb3 {[%emt 0:00:40]} 10. axb3 {[%emt 0:00:22]} O-O {[%emt 0:00:22]} 11. b4 {[%emt 0:00:23]} a6 {[%emt 0:01:02]} 12. Bf4 {[%emt 0:03:13]} h6 {[%emt 0:00:23]} 13. Ne5 {[%emt 0:00:30]} Nxe5 {[%emt 0:00:28]} 14. Bxe5 {[%emt 0:00:46]} Nd7 {[%emt 0:00:22]} 15. Bf4 {[%emt 0:00:34]} Bf6 {[%emt 0:00:30]} 16. Bd6 {[%emt 0:01:32]} Rfe8 {[%emt 0:00:21]} 17. Rad1 {[%emt 0:01:54]} e5 {[%emt 0:00:42]} 18. dxe5 {[%emt 0:00:23]} Nxe5 {[%emt 0:00:23]} 19. h3 {[%emt 0:00:37]} Bh5 {[%emt 0:00:23]} 20. g4 {[%emt 0:00:53]} Bg6 {[%emt 0:00:22]} 21. f4 {[%emt 0:01:31]} Nc4 {[%emt 0:00:22]} 22. f5 {[%emt 0:00:21]} Bh7 {[%emt 0:00:22]} 23. e4 {[%emt 0:00:22]} Nxb2 {[%emt 0:01:20]} 24. Rc1 {[%emt 0:00:24]} Nd3 {[%emt 0:01:04]} 25. exd5 {[%emt 0:00:41]} Nxc1 {[%emt 0:00:30]} 26. Rxc1 {[%emt 0:00:22]} Rac8 {[%emt 0:00:46]} 27. dxc6 {[%emt 0:00:33]} bxc6 {[%emt 0:00:21]} 28. Na4 {[%emt 0:00:22]} Bd4+ {[%emt 0:01:17]} 29. Kh1 {[%emt 0:00:48]} Re2 {[%emt 0:00:24]} 30. Nb6 {[%emt 0:00:33]} Rce8 {[%emt 0:00:22]} 31. Bxc6 {[%emt 0:00:25]} Re1+ {[%emt 0:00:23]} 32. Rxe1 {[%emt 0:00:24]} Rxe1+ {[%emt 0:00:21]} 33. Kg2 {[%emt 0:00:22]} g6 {[%emt 0:00:45]} 34. Bd7 {[%emt 0:00:51]} gxf5 {[%emt 0:00:22]} 35. gxf5 {[%emt 0:00:22]} Rc1 {[%emt 0:03:04]} 36. Nd5 {[%emt 0:00:45]} Kg7 {[%emt 0:04:04]} 37. Kf3 {[%emt 0:03:35]} Bb2 {[%emt 0:01:05]} 38. Ne7 {[%emt 0:01:48]} a5 {[%emt 0:02:58]} 39. bxa5 {[%emt 0:00:49]} Ba3 {[%emt 0:01:14]} 40. a6 {[%emt 0:00:21]} Bxc5 {[%emt 0:01:10]} 41. Bxc5 {[%emt 0:00:22]} Rxc5 {[%emt 0:00:22]} 42. a7 {[%emt 0:00:23]} Ra5 {[%emt 0:00:27]} 43. Nc6 {[%emt 0:00:48]} Ra3+ {[%emt 0:00:41]} 44. Kf4 {[%emt 0:00:21]} Kf6 {[%emt 0:00:34]} 45. Bc8 {[%emt 0:00:33]} Ra4+ {[%emt 0:01:02]} 46. Kg3 {[%emt 0:00:25]} Ra3+ {[%emt 0:00:52]} 47. Kf4 {[%emt 0:00:32]} Ra4+ {[%emt 0:00:38]} 48. Kg3 {[%emt 0:00:40]} Bxf5 {[%emt 0:01:36]} 49. Bb7 {[%emt 0:00:22]} Ra3+ {[%emt 0:00:21]} 50. Kf4 {[%emt 0:00:32]} Ra4+ {[%emt 0:01:02]} 51. Kg3 {[%emt 0:00:23]} Ra3+ {[%emt 0:00:30]} 52. Kf4 {[%emt 0:00:21]} Bxh3 {[%emt 0:00:24]} 53. a8=Q {[%emt 0:00:24]} Rxa8 {[%emt 0:00:22]} 54. Bxa8 {[%emt 0:00:22]} Bg2 {[%emt 0:00:21]} 55. Bb7 {[%emt 0:00:22]} Bxc6 {[%emt 0:01:29] Ke4 Ke5+} 1/2-1/2

[Event "EWIRCC 2019"]
[Site "Monte-Carlo"]
[Date "2019.11.30"]
[Round "2.6"]
[White "Muetsch, Annmarie"]
[Black "Bodnaruk, Anastasia"]
[Result "1-0"]
[ECO "B51"]
[WhiteElo "2240"]
[BlackElo "2412"]
[Annotator "NA RC"]
[PlyCount "171"]
[EventDate "2019.11.28"]
[EventType "swiss"]
[EventCountry "MNC"]
[SourceTitle "playchess.com"]
[Source "ChessBase"]
[SourceQuality "1"]
[TimeControl "5400+30"]

1. e4 {[%emt 1:15:13]} c5 {[%emt 1:15:11]} 2. Nf3 {[%emt 0:00:22]} d6 {[%emt 0:00:21]} 3. Bb5+ {[%emt 0:00:24]} Nd7 {[%emt 0:00:36]} 4. O-O {[%emt 0:00:24]} a6 {[%emt 0:00:56]} 5. Bd3 {[%emt 0:00:24]} Ngf6 {[%emt 0:00:38]} 6. Re1 {[%emt 0:00:28]} b5 {[%emt 0:00:56]} 7. c4 {[%emt 0:01:58]} bxc4 {[%emt 0:02:06]} 8. Bxc4 {[%emt 0:00:22]} Nb6 {[%emt 0:00:21]} 9. Bb3 {[%emt 0:01:44]} e5 {[%emt 0:02:21]} 10. d3 {[%emt 0:04:45]} Be7 {[%emt 0:02:46]} 11. h3 {[%emt 0:00:39]} O-O {[%emt 0:00:24]} 12. Nc3 {[%emt 0:00:41]} h6 {[%emt 0:01:19]} 13. Ne2 {[%emt 0:01:23]} Be6 {[%emt 0:01:51]} 14. Ng3 {[%emt 0:00:36]} Ne8 {[%emt 0:02:21]} 15. Bd2 {[%emt 0:01:24]} a5 {[%emt 0:00:51]} 16. a4 {[%emt 0:00:41]} Nc7 {[%emt 0:01:05]} 17. Nh2 {[%emt 0:01:43]} Bg5 {[%emt 0:00:46]} 18. Bc3 {[%emt 0:00:52]} g6 {[%emt 0:00:51]} 19. Ng4 {[%emt 0:00:55]} h5 {[%emt 0:00:37]} 20. Ne3 {[%emt 0:00:27]} Bh6 {[%emt 0:01:18]} 21. Nc4 {[%emt 0:00:29]} Nxc4 {[%emt 0:00:37]} 22. Bxc4 {[%emt 0:00:31]} Bxc4 {[%emt 0:00:46]} 23. dxc4 {[%emt 0:00:21]} Ne6 {[%emt 0:00:21]} 24. b3 {[%emt 0:01:18]} Rb8 {[%emt 0:00:47]} 25. Rb1 {[%emt 0:00:27]} Qc7 {[%emt 0:01:03]} 26. Nf1 {[%emt 0:01:13]} Nd4 {[%emt 0:00:59]} 27. Ne3 {[%emt 0:00:24]} Bxe3 {[%emt 0:00:29]} 28. fxe3 {[%emt 0:00:23]} Nc6 {[%emt 0:00:48]} 29. Rf1 {[%emt 0:00:44]} Kg7 {[%emt 0:00:35]} 30. Qd2 {[%emt 0:00:38]} f6 {[%emt 0:00:34]} 31. Rfd1 {[%emt 0:00:28]} Rfd8 {[%emt 0:00:22]} 32. Qf2 {[%emt 0:00:37]} Qe7 {[%emt 0:00:31]} 33. Rf1 {[%emt 0:00:30]} Qe6 {[%emt 0:00:32]} 34. Qe2 {[%emt 0:00:36]} Rd7 {[%emt 0:00:32]} 35. Be1 {[%emt 0:00:55]} Rdb7 {[%emt 0:00:27]} 36. Qd1 {[%emt 0:00:28]} Rb6 {[%emt 0:00:40]} 37. Bh4 {[%emt 0:00:27]} Rf8 {[%emt 0:00:25]} 38. Rb2 {[%emt 0:00:36]} Rb7 {[%emt 0:00:31]} 39. Be1 {[%emt 0:00:45]} Nb4 {[%emt 0:00:30]} 40. Rbf2 {[%emt 0:00:53]} Nc6 {[%emt 0:00:38]} 41. Rd2 {[%emt 0:00:29]} Rd7 {[%emt 0:00:24]} 42. Bh4 {[%emt 0:00:32]} Nb4 {[%emt 0:00:37]} 43. Qf3 {[%emt 0:00:28]} f5 {[%emt 0:00:30]} 44. exf5 {[%emt 0:01:01]} Rxf5 {[%emt 0:00:30]} 45. Qd1 {[%emt 0:00:23]} Rxf1+ {[%emt 0:00:26]} 46. Qxf1 {[%emt 0:00:24]} e4 {[%emt 0:00:36]} 47. Rf2 {[%emt 0:01:19]} Rf7 {[%emt 0:00:21]} 48. Qa1+ {[%emt 0:00:39]} Kh7 {[%emt 0:00:38]} 49. Bf6 {[%emt 0:00:39]} Nd3 {[%emt 0:00:23]} 50. Rf1 {[%emt 0:00:21]} Qc8 {[%emt 0:00:36]} 51. Bc3 {[%emt 0:00:28]} Qf8 {[%emt 0:00:31]} 52. Bxa5 {[%emt 0:00:42]} Rf2 {[%emt 0:00:26]} 53. Bc3 {[%emt 0:00:30]} Qf5 {[%emt 0:00:30]} 54. a5 {[%emt 0:00:37]} Qg5 {[%emt 0:00:38]} 55. Rxf2 {[%emt 0:00:28]} Qxe3 {[%emt 0:00:21]} 56. Qf1 {[%emt 0:00:37]} Nxf2 {[%emt 0:00:31]} 57. Qxf2 {[%emt 0:00:21]} Qxc3 {[%emt 0:00:21]} 58. Qf7+ {[%emt 0:00:22]} Kh6 {[%emt 0:00:21]} 59. Qf4+ {[%emt 0:00:32]} Kg7 {[%emt 0:00:26]} 60. Qxe4 {[%emt 0:00:28]} Qxa5 {[%emt 0:01:12]} 61. Qe7+ {[%emt 0:00:22]} Kh6 {[%emt 0:00:00]} 62. Qxd6 {[%emt 0:00:26]} Qe1+ {[%emt 0:00:20]} 63. Kh2 {[%emt 0:00:21]} Qe3 {[%emt 0:00:21]} 64. Qf8+ {[%emt 0:00:56]} Kh7 {[%emt 0:00:23]} 65. Qf7+ {[%emt 0:00:23]} Kh6 {[%emt 0:00:22]} 66. Qf3 {[%emt 0:00:32]} Qd4 {[%emt 0:01:16]} 67. Qg3 {[%emt 0:00:26]} h4 {[%emt 0:00:28]} 68. Qc7 {[%emt 0:00:25]} Qe3 {[%emt 0:00:31]} 69. Qd6 {[%emt 0:00:43]} Qxb3 {[%emt 0:00:35]} 70. Qf4+ {[%emt 0:00:26]} g5 {[%emt 0:00:24]} 71. Qd6+ {[%emt 0:00:22]} Kh5 {[%emt 0:00:24]} 72. Qxc5 {[%emt 0:00:38]} Qg3+ {[%emt 0:00:22]} 73. Kh1 {[%emt 0:00:23]} Qe1+ {[%emt 0:00:22]} 74. Qg1 {[%emt 0:00:24]} Qc3 {[%emt 0:00:35]} 75. Qd1+ {[%emt 0:00:33]} Kh6 {[%emt 0:00:26]} 76. Qd6+ {[%emt 0:00:23]} Kg7 {[%emt 0:00:53]} 77. c5 {[%emt 0:00:24]} Qf6 {[%emt 0:00:35]} 78. Qc7+ {[%emt 0:00:43]} Kg8 {[%emt 0:00:30]} 79. c6 {[%emt 0:00:26]} Qf1+ {[%emt 0:00:31]} 80. Kh2 {[%emt 0:00:21]} Qc4 {[%emt 0:00:25]} 81. Qd6 {[%emt 0:00:30]} Kg7 {[%emt 0:00:33]} 82. c7 {[%emt 0:00:26]} Qc3 {[%emt 0:00:32]} 83. Qe7+ {[%emt 0:00:38]} Kg6 {[%emt 0:00:30]} 84. Qe6+ {[%emt 0:00:23]} Kh5 {[%emt 0:00:27]} 85. c8=Q {[%emt 0:00:46]} Qg3+ {[%emt 0:00:33]} 86. Kh1 {[%emt 0:00:22]} 1-0

[Event "EWIRCC 2019"]
[Site "Monte-Carlo"]
[Date "2019.11.30"]
[Round "2.7"]
[White "Batsiashvili, Nino"]
[Black "Bensdorp-De Labaca, Marlies"]
[Result "1/2-1/2"]
[ECO "D12"]
[WhiteElo "2422"]
[BlackElo "2228"]
[Annotator "NA"]
[PlyCount "103"]
[EventDate "2019.11.28"]
[EventType "swiss"]
[EventCountry "MNC"]
[SourceTitle "playchess.com"]
[Source "ChessBase"]
[SourceQuality "1"]
[TimeControl "5400+30"]

1. d4 {[%emt 1:15:14]} d5 {[%emt 1:15:11]} 2. c4 {[%emt 0:00:22]} c6 {[%emt 0:00:22]} 3. Nf3 {[%emt 0:00:23]} Nf6 {[%emt 0:00:22]} 4. e3 {[%emt 0:00:21]} Bf5 {[%emt 0:00:26]} 5. Nc3 {[%emt 0:00:26]} e6 {[%emt 0:00:23]} 6. Nh4 {[%emt 0:00:24]} Bg6 {[%emt 0:00:27]} 7. Nxg6 {[%emt 0:00:33]} hxg6 {[%emt 0:00:21]} 8. Qd3 {[%emt 0:00:23]} Qc7 {[%emt 0:00:52]} 9. g3 {[%emt 0:00:23]} Nbd7 {[%emt 0:00:33]} 10. Bg2 {[%emt 0:00:26]} Bd6 {[%emt 0:01:22]} 11. O-O {[%emt 0:00:38]} O-O {[%emt 0:00:53]} 12. Bd2 {[%emt 0:01:13]} Rfe8 {[%emt 0:01:28]} 13. Rac1 {[%emt 0:01:29]} dxc4 {[%emt 0:01:08]} 14. Qxc4 {[%emt 0:00:22]} Nb6 {[%emt 0:00:32]} 15. Qb3 {[%emt 0:01:41]} Qe7 {[%emt 0:01:10]} 16. a4 {[%emt 0:00:25]} Rab8 {[%emt 0:01:43]} 17. a5 {[%emt 0:00:52]} Nbd7 {[%emt 0:00:22]} 18. Rfd1 {[%emt 0:00:32]} e5 {[%emt 0:00:34]} 19. a6 {[%emt 0:00:52]} bxa6 {[%emt 0:00:32]} 20. Qa2 {[%emt 0:00:21]} exd4 {[%emt 0:00:50]} 21. exd4 {[%emt 0:00:21]} c5 {[%emt 0:00:21]} 22. Re1 {[%emt 0:01:00]} Qf8 {[%emt 0:00:21]} 23. Rxe8 {[%emt 0:02:11]} Rxe8 {[%emt 0:00:29]} 24. d5 {[%emt 0:00:27]} Rb8 {[%emt 0:00:30]} 25. Re1 {[%emt 0:00:49]} Rb6 {[%emt 0:02:22]} 26. Nd1 {[%emt 0:01:41]} Ne5 {[%emt 0:00:30]} 27. Bc3 {[%emt 0:00:22]} Nd3 {[%emt 0:00:36]} 28. Re3 {[%emt 0:00:31]} Nb4 {[%emt 0:00:24]} 29. Qc4 {[%emt 0:00:55]} a5 {[%emt 0:01:13]} 30. Re2 {[%emt 0:00:22]} Rb8 {[%emt 0:00:51]} 31. Ne3 {[%emt 0:00:33]} Re8 {[%emt 0:00:49]} 32. Re1 {[%emt 0:01:04]} Rd8 {[%emt 0:02:15]} 33. Ra1 {[%emt 0:03:09]} Bc7 {[%emt 0:00:25]} 34. Bxb4 {[%emt 0:01:26]} axb4 {[%emt 0:00:22]} 35. Rxa7 {[%emt 0:00:21]} Be5 {[%emt 0:00:34]} 36. b3 {[%emt 0:00:31]} Bd4 {[%emt 0:01:02]} 37. Nc2 {[%emt 0:00:33]} Be5 {[%emt 0:01:05]} 38. Ne1 {[%emt 0:00:36]} Qd6 {[%emt 0:01:12]} 39. Nd3 {[%emt 0:01:20]} Bd4 {[%emt 0:00:22]} 40. Nxb4 {[%emt 0:00:57]} Bxf2+ {[%emt 0:00:34]} 41. Kxf2 {[%emt 0:00:21]} cxb4 {[%emt 0:00:21]} 42. Qc7 {[%emt 0:01:31]} Ng4+ {[%emt 0:03:06]} 43. Kg1 {[%emt 0:00:21]} Qf6 {[%emt 0:00:21]} 44. Bf3 {[%emt 0:01:08]} Ne5 {[%emt 0:00:32]} 45. Be4 {[%emt 0:01:37]} Ng4 {[%emt 0:01:11]} 46. Bf3 {[%emt 0:00:45]} Ne5 {[%emt 0:01:04]} 47. Be4 {[%emt 0:00:32]} Ng4 {[%emt 0:00:20]} 48. Bf3 {[%emt 0:00:45]} Ne5 {[%emt 0:00:21]} 49. Be4 {[%emt 0:00:30]} Ng4 {[%emt 0:00:22]} 50. Qc5 {[%emt 0:01:01]} Re8 {[%emt 0:01:34]} 51. Qc7 {[%emt 0:00:30]} Rd8 {[%emt 0:00:30]} 52. Bf3 {[%emt 0:00:30]} 1/2-1/2